[Event "*** Titled Tuesday Blitz"]
[Site "Chess.com"]
[Date "2018.11.06"]
[Round "8"]
[White "MITerryble"]
[Black "VladDobrov"]
[Result "1-0"]
[WhiteElo "2766"]
[BlackElo "2722"]
[TimeControl "180+2"]
[EndTime "14:50:39 PST"]
[Termination "MITerryble won by resignation"]

1. d4 {[%clk 0:03:01.9]} 1... Nf6 {[%clk 0:03:00.6]} 2. Nf3 {[%clk 0:03:03.1]}
2... e6 {[%clk 0:03:01.2]} 3. c4 {[%clk 0:03:04.4]} 3... b6 {[%clk 0:02:59]} 4.
g3 {[%clk 0:03:05.4]} 4... Bb7 {[%clk 0:02:55.1]} 5. Bg2 {[%clk 0:03:04.4]} 5...
g6 {[%clk 0:02:57]} 6. O-O {[%clk 0:03:03.4]} 6... Bg7 {[%clk 0:02:58.2]} 7. Nc3
{[%clk 0:03:02.7]} 7... O-O {[%clk 0:02:59.1]} 8. Qc2 {[%clk 0:03:03.4]} 8... c5
{[%clk 0:02:09]} 9. Rd1 {[%clk 0:02:56]} 9... cxd4 {[%clk 0:02:08.2]} 10. Nxd4
{[%clk 0:02:57.9]} 10... Bxg2 {[%clk 0:02:08.8]} 11. Kxg2 {[%clk 0:02:59.8]}
11... Qc8 {[%clk 0:02:08.9]} 12. b3 {[%clk 0:03:00.6]} 12... a6 {[%clk
0:01:49.3]} 13. Bb2 {[%clk 0:03:00.3]} 13... Nc6 {[%clk 0:01:46.6]} 14. Nf3
{[%clk 0:02:58]} 14... Qb7 {[%clk 0:01:20]} 15. Ne4 {[%clk 0:02:58.8]} 15...
Nxe4 {[%clk 0:01:05.4]} 16. Bxg7 {[%clk 0:03:00.7]} 16... Kxg7 {[%clk 0:01:05]}
17. Qxe4 {[%clk 0:03:01.4]} 17... Ra7 {[%clk 0:00:44.7]} 18. Rd6 {[%clk
0:03:00.9]} 18... b5 {[%clk 0:00:45.8]} 19. Rad1 {[%clk 0:02:58.3]} 19... bxc4
{[%clk 0:00:46.6]} 20. Rxd7 {[%clk 0:02:56.3]} 20... Qb6 {[%clk 0:00:43.9]} 21.
R7d6 {[%clk 0:02:52.5]} 21... Rc7 {[%clk 0:00:44.3]} 22. Ne5 {[%clk 0:02:42.8]}
22... Rfc8 {[%clk 0:00:41.2]} 23. Qf4 {[%clk 0:01:54.3]} 23... Qb7 {[%clk
0:00:28.5]} 24. Nxc4 {[%clk 0:01:30.5]} 24... Ne7+ {[%clk 0:00:23]} 25. f3
{[%clk 0:01:18.6]} 25... Nf5 {[%clk 0:00:23.6]} 26. R6d3 {[%clk 0:01:14.2]}
26... Rf8 {[%clk 0:00:07.9]} 27. g4 {[%clk 0:01:14.6]} 27... Nh4+ {[%clk
0:00:06.2]} 28. Kg3 {[%clk 0:01:15]} 28... h6 {[%clk 0:00:08.1]} 29. Qd4+ {[%clk
0:01:10.1]} 29... Kh7 {[%clk 0:00:08.5]} 30. Kxh4 {[%clk 0:01:11]} 30... Qb8
{[%clk 0:00:10.4]} 31. Qd6 {[%clk 0:01:10.7]} 31... h5 {[%clk 0:00:10.9]} 32.
gxh5 {[%clk 0:01:10.9]} 32... Rfc8 {[%clk 0:00:10.9]} 33. hxg6+ {[%clk
0:01:09.3]} 33... Kxg6 {[%clk 0:00:11.7]} 34. Kg3 {[%clk 0:01:10.6]} 34... Rh8
{[%clk 0:00:10.9]} 35. Rd4 {[%clk 0:01:08.4]} 35... f5 {[%clk 0:00:02.4]} 36.
Qxe6+ {[%clk 0:01:01.3]} 36... Kg7 {[%clk 0:00:02.9]} 37. Qe5+ {[%clk
0:00:58.8]} 37... Kh6 {[%clk 0:00:03.8]} 38. Rd6+ {[%clk 0:00:59.5]} 38... Kh7
{[%clk 0:00:05]} 39. Rd7+ {[%clk 0:00:58.7]} 1-0

[Event "*** Titled Tuesday Blitz"]
[Site "Chess.com"]
[Date "2018.11.06"]
[Round "8"]
[White "Paparama_1917"]
[Black "abubakrtagelsir"]
[Result "1-0"]
[WhiteElo "2569"]
[BlackElo "2365"]
[TimeControl "180+2"]
[EndTime "14:50:39 PST"]
[Termination "Paparama_1917 won by checkmate"]

1. e4 {[%clk 0:02:59.8]} 1... d6 {[%clk 0:02:59.8]} 2. d4 {[%clk 0:03:00.2]}
2... Nf6 {[%clk 0:03:00.7]} 3. Nc3 {[%clk 0:03:01.1]} 3... g6 {[%clk 0:03:01.4]}
4. f4 {[%clk 0:03:01.4]} 4... Bg7 {[%clk 0:03:02.3]} 5. Nf3 {[%clk 0:03:02.5]}
5... c5 {[%clk 0:02:58.9]} 6. dxc5 {[%clk 0:03:01.6]} 6... Qa5 {[%clk
0:02:56.5]} 7. Qd4 {[%clk 0:03:01.4]} 7... O-O {[%clk 0:02:51.3]} 8. e5 {[%clk
0:02:44.6]} 8... Nc6 {[%clk 0:02:26.3]} 9. Qd2 {[%clk 0:02:30.6]} 9... dxe5
{[%clk 0:02:24.8]} 10. fxe5 {[%clk 0:02:30.9]} 10... Ng4 {[%clk 0:02:24.7]} 11.
Nd5 {[%clk 0:02:30.9]} 11... Qxd2+ {[%clk 0:02:22.6]} 12. Bxd2 {[%clk
0:02:32.6]} 12... Ngxe5 {[%clk 0:02:22.4]} 13. O-O-O {[%clk 0:02:23.2]} 13...
Nxf3 {[%clk 0:02:13]} 14. gxf3 {[%clk 0:02:24.6]} 14... Bf5 {[%clk 0:02:13.2]}
15. Bb5 {[%clk 0:02:17]} 15... Rae8 {[%clk 0:01:40.2]} 16. Bg5 {[%clk
0:01:54.8]} 16... f6 {[%clk 0:01:25]} 17. Be3 {[%clk 0:01:54.8]} 17... e6 {[%clk
0:01:17.6]} 18. Nc3 {[%clk 0:01:35.3]} 18... e5 {[%clk 0:01:15.8]} 19. Ne4
{[%clk 0:01:28]} 19... Bxe4 {[%clk 0:01:14.7]} 20. fxe4 {[%clk 0:01:27.3]} 20...
Rd8 {[%clk 0:01:13.3]} 21. Bc4+ {[%clk 0:01:08.1]} 21... Kh8 {[%clk 0:01:10.7]}
22. Rxd8 {[%clk 0:01:00.3]} 22... Rxd8 {[%clk 0:01:09.5]} 23. Rd1 {[%clk
0:00:59.5]} 23... Rxd1+ {[%clk 0:00:54.2]} 24. Kxd1 {[%clk 0:01:00.8]} 24... h5
{[%clk 0:00:55.2]} 25. Bd5 {[%clk 0:01:01.4]} 25... Kh7 {[%clk 0:00:54.2]} 26.
c3 {[%clk 0:01:02]} 26... g5 {[%clk 0:00:54.6]} 27. b4 {[%clk 0:01:02.2]} 27...
a6 {[%clk 0:00:53.8]} 28. a4 {[%clk 0:01:00.8]} 28... Kg6 {[%clk 0:00:47.2]} 29.
b5 {[%clk 0:00:59.7]} 29... axb5 {[%clk 0:00:47.5]} 30. axb5 {[%clk 0:01:00]}
30... Nd8 {[%clk 0:00:48.3]} 31. c6 {[%clk 0:00:59.6]} 31... bxc6 {[%clk
0:00:48.6]} 32. bxc6 {[%clk 0:01:01.3]} 32... Nxc6 {[%clk 0:00:47.8]} 33. Bxc6
{[%clk 0:01:00.3]} 33... f5 {[%clk 0:00:48.9]} 34. exf5+ {[%clk 0:01:01]} 34...
Kxf5 {[%clk 0:00:49.6]} 35. Ke2 {[%clk 0:01:01.8]} 35... g4 {[%clk 0:00:44.5]}
36. Bd7+ {[%clk 0:00:56.9]} 36... Ke4 {[%clk 0:00:43.1]} 37. c4 {[%clk
0:00:52.7]} 37... Bf8 {[%clk 0:00:40.8]} 38. Be8 {[%clk 0:00:52.4]} 38... h4
{[%clk 0:00:40.2]} 39. Bg6# {[%clk 0:00:52.9]} 1-0

[Event "*** Titled Tuesday Blitz"]
[Site "Chess.com"]
[Date "2018.11.06"]
[Round "8"]
[White "wadsy27"]
[Black "tteshan"]
[Result "1-0"]
[WhiteElo "2358"]
[BlackElo "2132"]
[TimeControl "180+2"]
[EndTime "14:50:41 PST"]
[Termination "wadsy27 won by resignation"]

1. c4 {[%clk 0:03:01.9]} 1... c5 {[%clk 0:02:59.8]} 2. g3 {[%clk 0:03:03.5]}
2... g6 {[%clk 0:02:59.9]} 3. Bg2 {[%clk 0:03:05.1]} 3... Bg7 {[%clk 0:03:01.4]}
4. Nc3 {[%clk 0:03:06.6]} 4... Nc6 {[%clk 0:03:01.7]} 5. Nf3 {[%clk 0:03:07.9]}
5... e6 {[%clk 0:03:02.3]} 6. d3 {[%clk 0:03:07.7]} 6... Nge7 {[%clk 0:03:03.6]}
7. Bg5 {[%clk 0:03:08.2]} 7... h6 {[%clk 0:03:03.5]} 8. Bd2 {[%clk 0:03:08.6]}
8... O-O {[%clk 0:03:04.9]} 9. O-O {[%clk 0:03:09.1]} 9... d5 {[%clk 0:03:05.8]}
10. Qc1 {[%clk 0:03:09.8]} 10... Kh7 {[%clk 0:03:05.8]} 11. a3 {[%clk
0:03:10.5]} 11... a5 {[%clk 0:03:04.3]} 12. Rb1 {[%clk 0:03:08.2]} 12... b6
{[%clk 0:02:57.5]} 13. Nb5 {[%clk 0:02:58.4]} 13... Bb7 {[%clk 0:02:57.3]} 14.
b4 {[%clk 0:02:57.3]} 14... axb4 {[%clk 0:02:55.9]} 15. axb4 {[%clk 0:02:58.3]}
15... cxb4 {[%clk 0:02:49.9]} 16. Bxb4 {[%clk 0:02:59.2]} 16... Nxb4 {[%clk
0:02:51.3]} 17. Rxb4 {[%clk 0:03:00.7]} 17... Nc6 {[%clk 0:02:52.5]} 18. Rb1
{[%clk 0:02:58.1]} 18... Ra2 {[%clk 0:02:49.5]} 19. cxd5 {[%clk 0:02:53.7]}
19... Qxd5 {[%clk 0:02:42.1]} 20. Nc3 {[%clk 0:02:53.3]} 20... Bxc3 {[%clk
0:02:41.2]} 21. Qxc3 {[%clk 0:02:55.2]} 21... Qa5 {[%clk 0:02:36.7]} 22. Qxa5
{[%clk 0:02:50.1]} 22... Nxa5 {[%clk 0:02:35.7]} 23. Rxb6 {[%clk 0:02:50.1]}
23... Rxe2 {[%clk 0:02:30.7]} 24. Ra1 {[%clk 0:02:27.6]} 24... Bxf3 {[%clk
0:02:24.8]} 25. Bxf3 {[%clk 0:02:25.1]} 25... Re5 {[%clk 0:02:26.2]} 26. Ra3
{[%clk 0:02:07.2]} 26... Rd8 {[%clk 0:01:08.3]} 27. Ra6 {[%clk 0:02:04.5]} 27...
Rb5 {[%clk 0:01:01.6]} 28. R6xa5 {[%clk 0:02:00.2]} 28... Rxa5 {[%clk
0:01:02.5]} 29. Rxa5 {[%clk 0:02:01.4]} 29... Rxd3 {[%clk 0:01:03.9]} 30. Kg2
{[%clk 0:02:03]} 30... Kg7 {[%clk 0:01:03.2]} 31. h4 {[%clk 0:02:04]} 31... Kf6
{[%clk 0:01:02.5]} 32. h5 {[%clk 0:02:03.1]} 32... gxh5 {[%clk 0:01:01.4]} 33.
Rxh5 {[%clk 0:02:02.5]} 33... Kg7 {[%clk 0:00:59.1]} 34. Ra5 {[%clk 0:02:02.7]}
34... Rd7 {[%clk 0:00:57.9]} 35. Rb5 {[%clk 0:02:02.4]} 35... f6 {[%clk
0:00:58.9]} 36. Rb7 {[%clk 0:02:02.4]} 36... Rxb7 {[%clk 0:00:54.8]} 37. Bxb7
{[%clk 0:02:04.3]} 37... Kg6 {[%clk 0:00:55.5]} 38. Kh3 {[%clk 0:02:03.1]} 38...
Kh5 {[%clk 0:00:55.3]} 39. f4 {[%clk 0:01:51.9]} 39... Kg6 {[%clk 0:00:46.5]}
40. Kh4 {[%clk 0:01:44.2]} 40... Kg7 {[%clk 0:00:31.1]} 41. Kh5 {[%clk
0:01:42.8]} 41... Kh7 {[%clk 0:00:32.2]} 42. Be4+ {[%clk 0:01:39]} 42... Kg7
{[%clk 0:00:32.1]} 43. Bb1 {[%clk 0:01:37.9]} 43... f5 {[%clk 0:00:15.8]} 44.
Ba2 {[%clk 0:01:24.2]} 44... Kf6 {[%clk 0:00:16.8]} 45. Bxe6 {[%clk 0:01:24]}
45... Kxe6 {[%clk 0:00:15.4]} 46. Kxh6 {[%clk 0:01:25.6]} 46... Kd5 {[%clk
0:00:16.8]} 47. Kg6 {[%clk 0:01:22.5]} 47... Ke4 {[%clk 0:00:16.3]} 48. Kg5
{[%clk 0:01:23.9]} 48... Kf3 {[%clk 0:00:17.2]} 49. Kxf5 {[%clk 0:01:25.5]}
49... Kxg3 {[%clk 0:00:18.9]} 50. Kg5 {[%clk 0:01:27.2]} 50... Kf3 {[%clk
0:00:20.4]} 51. f5 {[%clk 0:01:29.1]} 51... Ke4 {[%clk 0:00:21.8]} 52. f6 {[%clk
0:01:31]} 52... Ke5 {[%clk 0:00:23.4]} 53. f7 {[%clk 0:01:32.6]} 1-0

[Event "*** Titled Tuesday Blitz"]
[Site "Chess.com"]
[Date "2018.11.06"]
[Round "8"]
[White "vovachesss"]
[Black "mikhaillushenkov"]
[Result "1-0"]
[WhiteElo "2465"]
[BlackElo "2641"]
[TimeControl "180+2"]
[EndTime "14:50:46 PST"]
[Termination "vovachesss won by resignation"]

1. e4 {[%clk 0:02:58]} 1... e6 {[%clk 0:02:56.1]} 2. d4 {[%clk 0:02:55.8]} 2...
d5 {[%clk 0:02:57]} 3. Nc3 {[%clk 0:02:55.8]} 3... Bb4 {[%clk 0:02:57.6]} 4.
exd5 {[%clk 0:02:57.2]} 4... exd5 {[%clk 0:02:57.7]} 5. Bd3 {[%clk 0:02:58.5]}
5... Nc6 {[%clk 0:02:58.4]} 6. Ne2 {[%clk 0:02:59.8]} 6... Bg4 {[%clk 0:02:59]}
7. f3 {[%clk 0:03:00.9]} 7... Bh5 {[%clk 0:03:00]} 8. a3 {[%clk 0:03:02.2]} 8...
Bxc3+ {[%clk 0:02:55.5]} 9. bxc3 {[%clk 0:02:33.2]} 9... Bg6 {[%clk 0:02:49.9]}
10. Bf4 {[%clk 0:02:32]} 10... Nge7 {[%clk 0:02:45.9]} 11. O-O {[%clk
0:02:15.6]} 11... O-O {[%clk 0:02:45.3]} 12. Re1 {[%clk 0:02:16.3]} 12... Na5
{[%clk 0:02:38.9]} 13. Qd2 {[%clk 0:01:47.7]} 13... Nc4 {[%clk 0:02:36.7]} 14.
Bxc4 {[%clk 0:01:47.1]} 14... dxc4 {[%clk 0:02:38.6]} 15. Bg3 {[%clk 0:01:45.4]}
15... Nd5 {[%clk 0:02:27.3]} 16. Nf4 {[%clk 0:01:43.6]} 16... c6 {[%clk
0:02:23.1]} 17. Nxd5 {[%clk 0:01:42.2]} 17... Qxd5 {[%clk 0:02:09.9]} 18. Re5
{[%clk 0:01:42.3]} 18... Qd7 {[%clk 0:01:51.1]} 19. Rae1 {[%clk 0:01:43]} 19...
Rae8 {[%clk 0:01:50.6]} 20. h4 {[%clk 0:01:39.7]} 20... h5 {[%clk 0:01:46.6]}
21. a4 {[%clk 0:01:15.9]} 21... Rxe5 {[%clk 0:01:44.1]} 22. Rxe5 {[%clk
0:01:16]} 22... Re8 {[%clk 0:01:45.3]} 23. Qe3 {[%clk 0:01:11.6]} 23... Rxe5
{[%clk 0:01:44.1]} 24. Qxe5 {[%clk 0:01:13.5]} 24... b5 {[%clk 0:01:26.7]} 25.
a5 {[%clk 0:01:09.5]} 25... Bxc2 {[%clk 0:01:21.6]} 26. a6 {[%clk 0:01:10.6]}
26... Bg6 {[%clk 0:01:07.5]} 27. Qb8+ {[%clk 0:01:09.5]} 27... Kh7 {[%clk
0:01:07.8]} 28. Qb7 {[%clk 0:01:10.7]} 28... Bf5 {[%clk 0:01:06.4]} 29. Bb8
{[%clk 0:01:04.7]} 29... Qe6 {[%clk 0:01:01.7]} 30. Kh2 {[%clk 0:00:56.1]} 30...
Qf6 {[%clk 0:00:19.4]} 31. Bg3 {[%clk 0:00:49.8]} 31... g5 {[%clk 0:00:12.4]}
32. hxg5 {[%clk 0:00:50.4]} 32... Qg6 {[%clk 0:00:07]} 33. Qxa7 {[%clk
0:00:51.6]} 33... Be6 {[%clk 0:00:08.1]} 34. Qb8 {[%clk 0:00:44.7]} 34... Qxg5
{[%clk 0:00:07.4]} 35. a7 {[%clk 0:00:44.4]} 35... h4 {[%clk 0:00:08]} 36. Bf4
{[%clk 0:00:37.7]} 1-0

[Event "*** Titled Tuesday Blitz"]
[Site "Chess.com"]
[Date "2018.11.06"]
[Round "8"]
[White "twitchTriniCupid"]
[Black "JeremDev"]
[Result "1-0"]
[WhiteElo "2259"]
[BlackElo "2233"]
[TimeControl "180+2"]
[EndTime "14:50:52 PST"]
[Termination "twitchTriniCupid won by resignation"]

1. d4 {[%clk 0:03:01.9]} 1... Nf6 {[%clk 0:03:00]} 2. c4 {[%clk 0:03:02.5]} 2...
c5 {[%clk 0:03:01.1]} 3. e3 {[%clk 0:02:56.3]} 3... cxd4 {[%clk 0:03:00.3]} 4.
exd4 {[%clk 0:02:57]} 4... d5 {[%clk 0:03:02.2]} 5. Nf3 {[%clk 0:02:57.6]} 5...
Nc6 {[%clk 0:03:02.2]} 6. Nc3 {[%clk 0:02:58.3]} 6... g6 {[%clk 0:03:01.9]} 7.
h3 {[%clk 0:02:49.4]} 7... Bg7 {[%clk 0:03:02.4]} 8. Bd3 {[%clk 0:02:46.5]} 8...
dxc4 {[%clk 0:03:02.9]} 9. Bxc4 {[%clk 0:02:47.5]} 9... O-O {[%clk 0:03:04.1]}
10. O-O {[%clk 0:02:48.4]} 10... b6 {[%clk 0:03:05.5]} 11. Bg5 {[%clk
0:02:45.3]} 11... Bb7 {[%clk 0:03:06.1]} 12. Re1 {[%clk 0:02:44.4]} 12... Rc8
{[%clk 0:03:06.9]} 13. Bb5 {[%clk 0:02:20.1]} 13... Nb4 {[%clk 0:03:05.3]} 14.
a3 {[%clk 0:02:01.7]} 14... Nbd5 {[%clk 0:03:06.1]} 15. Ne2 {[%clk 0:02:00.1]}
15... Ne4 {[%clk 0:03:03.1]} 16. Bh4 {[%clk 0:01:55.1]} 16... Nd6 {[%clk
0:03:04.2]} 17. Bd3 {[%clk 0:01:54]} 17... Re8 {[%clk 0:02:59.2]} 18. Qb3 {[%clk
0:01:42.1]} 18... Qd7 {[%clk 0:02:54.5]} 19. Rad1 {[%clk 0:01:38.7]} 19... e6
{[%clk 0:02:45.7]} 20. Bg3 {[%clk 0:01:33.5]} 20... Nf5 {[%clk 0:02:44.9]} 21.
Ne5 {[%clk 0:01:29.8]} 21... Qe7 {[%clk 0:02:41.1]} 22. Bh2 {[%clk 0:01:22.9]}
22... Red8 {[%clk 0:02:32.9]} 23. Rc1 {[%clk 0:01:12.5]} 23... Qh4 {[%clk
0:02:31.6]} 24. Nf3 {[%clk 0:01:02.6]} 24... Qh6 {[%clk 0:02:21]} 25. Qa4 {[%clk
0:01:02.5]} 25... a6 {[%clk 0:02:03.3]} 26. Rxc8 {[%clk 0:01:02]} 26... Rxc8
{[%clk 0:02:04.4]} 27. Qd7 {[%clk 0:00:59.2]} 27... Nh4 {[%clk 0:00:38.8]} 28.
Nxh4 {[%clk 0:00:59.2]} 28... Qd2 {[%clk 0:00:37.8]} 29. Nf3 {[%clk 0:00:46.3]}
29... Qxd3 {[%clk 0:00:38.4]} 30. Qxb7 {[%clk 0:00:44.5]} 30... Rd8 {[%clk
0:00:26.8]} 31. Be5 {[%clk 0:00:38.9]} 31... Bf8 {[%clk 0:00:22.3]} 32. Bf6
{[%clk 0:00:26.6]} 32... Re8 {[%clk 0:00:18.7]} 33. Ne5 {[%clk 0:00:26.3]} 33...
Be7 {[%clk 0:00:16.5]} 34. Nxd3 {[%clk 0:00:25.4]} 1-0

[Event "*** Titled Tuesday Blitz"]
[Site "Chess.com"]
[Date "2018.11.06"]
[Round "8"]
[White "Alexander_Moskalenko"]
[Black "eljanov"]
[Result "1/2-1/2"]
[WhiteElo "2875"]
[BlackElo "2835"]
[TimeControl "180+2"]
[EndTime "14:51:11 PST"]
[Termination "Game drawn by repetition"]

1. e4 {[%clk 0:03:01.9]} 1... e5 {[%clk 0:03:00.7]} 2. Nf3 {[%clk 0:03:01.1]}
2... Nc6 {[%clk 0:03:02.2]} 3. Nc3 {[%clk 0:03:02.4]} 3... Nf6 {[%clk 0:03:03]}
4. d4 {[%clk 0:03:02.3]} 4... exd4 {[%clk 0:03:03.2]} 5. Nxd4 {[%clk 0:03:04.2]}
5... Bb4 {[%clk 0:03:03.4]} 6. Nxc6 {[%clk 0:03:05.5]} 6... bxc6 {[%clk
0:03:05.3]} 7. Bd3 {[%clk 0:03:07]} 7... d5 {[%clk 0:03:03.2]} 8. exd5 {[%clk
0:03:07.6]} 8... cxd5 {[%clk 0:03:04.4]} 9. O-O {[%clk 0:03:08]} 9... O-O {[%clk
0:03:05.2]} 10. h3 {[%clk 0:03:09.4]} 10... Be6 {[%clk 0:02:58.1]} 11. Qf3
{[%clk 0:03:06.5]} 11... h6 {[%clk 0:02:54]} 12. Bf4 {[%clk 0:03:02.4]} 12...
Bd6 {[%clk 0:02:42.7]} 13. Rad1 {[%clk 0:03:00.2]} 13... Rb8 {[%clk 0:02:29.8]}
14. b3 {[%clk 0:03:00.1]} 14... c5 {[%clk 0:02:29.3]} 15. Bc4 {[%clk 0:02:22.9]}
15... d4 {[%clk 0:01:53.3]} 16. Bxe6 {[%clk 0:02:21.6]} 16... fxe6 {[%clk
0:01:54.2]} 17. Bxd6 {[%clk 0:02:17.4]} 17... Qxd6 {[%clk 0:01:56.1]} 18. Ne4
{[%clk 0:02:18.8]} 18... Qd5 {[%clk 0:01:49.5]} 19. Rfe1 {[%clk 0:02:10.4]}
19... Nh5 {[%clk 0:01:42.5]} 20. Qg4 {[%clk 0:02:00.8]} 20... Nf4 {[%clk
0:01:16]} 21. c3 {[%clk 0:01:30.8]} 21... Rf7 {[%clk 0:01:03.7]} 22. cxd4 {[%clk
0:01:19.2]} 22... cxd4 {[%clk 0:01:04.5]} 23. g3 {[%clk 0:01:20.8]} 23... h5
{[%clk 0:01:03.7]} 24. Qh4 {[%clk 0:01:19.4]} 24... Rbf8 {[%clk 0:00:59.8]} 25.
Rd2 {[%clk 0:01:12.7]} 25... d3 {[%clk 0:00:55.2]} 26. gxf4 {[%clk 0:01:00]}
26... Rxf4 {[%clk 0:00:55.7]} 27. Qg3 {[%clk 0:01:01.2]} 27... Rxe4 {[%clk
0:00:55.8]} 28. Rxe4 {[%clk 0:01:03.1]} 28... Qxe4 {[%clk 0:00:56.9]} 29. Qxd3
{[%clk 0:01:04.7]} 29... Qf4 {[%clk 0:00:54.4]} 30. Re2 {[%clk 0:01:01.1]} 30...
Rf5 {[%clk 0:00:52]} 31. Qd8+ {[%clk 0:00:32.3]} 31... Kh7 {[%clk 0:00:52.2]}
32. Qd3 {[%clk 0:00:33.8]} 32... g6 {[%clk 0:00:49.1]} 33. Qe3 {[%clk
0:00:29.3]} 33... Rg5+ {[%clk 0:00:39]} 34. Kf1 {[%clk 0:00:30.3]} 34... Qf5
{[%clk 0:00:29.4]} 35. Qxe6 {[%clk 0:00:28.6]} 35... Qb1+ {[%clk 0:00:30.4]} 36.
Re1 {[%clk 0:00:27.4]} 36... Qd3+ {[%clk 0:00:31.8]} 37. Re2 {[%clk 0:00:29]}
37... Qd1+ {[%clk 0:00:32.2]} 38. Re1 {[%clk 0:00:29.7]} 38... Qd3+ {[%clk
0:00:29.1]} 39. Re2 {[%clk 0:00:31.1]} 39... Qd1+ {[%clk 0:00:28.5]} 40. Re1
{[%clk 0:00:31.5]} 40... Qd3+ {[%clk 0:00:21.8]} 41. Re2 {[%clk 0:00:27.8]}
1/2-1/2

[Event "*** Titled Tuesday Blitz"]
[Site "Chess.com"]
[Date "2018.11.06"]
[Round "8"]
[White "Pilopa"]
[Black "ddtru"]
[Result "0-1"]
[WhiteElo "2380"]
[BlackElo "2322"]
[TimeControl "180+2"]
[EndTime "14:51:34 PST"]
[Termination "ddtru won by checkmate"]

1. d4 {[%clk 0:02:59.4]} 1... Nf6 {[%clk 0:02:59.8]} 2. c4 {[%clk 0:03:00.2]}
2... c6 {[%clk 0:02:59.6]} 3. Bf4 {[%clk 0:02:59.7]} 3... d5 {[%clk 0:02:59.9]}
4. e3 {[%clk 0:03:00.4]} 4... g6 {[%clk 0:02:53]} 5. Nc3 {[%clk 0:03:00.5]} 5...
Bg7 {[%clk 0:02:53]} 6. cxd5 {[%clk 0:03:01]} 6... Nxd5 {[%clk 0:02:53.7]} 7.
Nxd5 {[%clk 0:03:00.7]} 7... cxd5 {[%clk 0:02:54]} 8. Nf3 {[%clk 0:02:54.9]}
8... Nc6 {[%clk 0:02:53.6]} 9. Bd3 {[%clk 0:02:52.5]} 9... O-O {[%clk
0:02:53.9]} 10. O-O {[%clk 0:02:50.8]} 10... Bg4 {[%clk 0:02:50.4]} 11. h3
{[%clk 0:02:49.2]} 11... Bxf3 {[%clk 0:02:50.3]} 12. Qxf3 {[%clk 0:02:50.4]}
12... e5 {[%clk 0:02:38.7]} 13. dxe5 {[%clk 0:02:51.1]} 13... Nxe5 {[%clk
0:02:39.6]} 14. Bxe5 {[%clk 0:02:51.8]} 14... Bxe5 {[%clk 0:02:40.7]} 15. b3
{[%clk 0:02:52.9]} 15... Bxa1 {[%clk 0:02:39.3]} 16. Rxa1 {[%clk 0:02:52.9]}
16... Rc8 {[%clk 0:02:34.5]} 17. Rd1 {[%clk 0:02:52.5]} 17... Qg5 {[%clk
0:02:24.7]} 18. g3 {[%clk 0:02:37.1]} 18... Rfd8 {[%clk 0:02:23.3]} 19. h4
{[%clk 0:02:37.1]} 19... Qe5 {[%clk 0:02:16.6]} 20. Kg2 {[%clk 0:02:30]} 20...
h5 {[%clk 0:02:16.8]} 21. Qe2 {[%clk 0:02:27.4]} 21... Kg7 {[%clk 0:02:14.1]}
22. Qf3 {[%clk 0:02:11.1]} 22... a6 {[%clk 0:02:11.7]} 23. Qe2 {[%clk
0:02:11.8]} 23... Rd6 {[%clk 0:02:12]} 24. Qf3 {[%clk 0:02:02.7]} 24... Rc7
{[%clk 0:02:08]} 25. Qe2 {[%clk 0:02:00.5]} 25... Rdc6 {[%clk 0:02:06.4]} 26.
Qd2 {[%clk 0:02:00.8]} 26... Qc3 {[%clk 0:01:49.3]} 27. Qe2 {[%clk 0:02:01.3]}
27... Qe5 {[%clk 0:01:33.8]} 28. Qd2 {[%clk 0:01:59.5]} 28... d4 {[%clk
0:01:28.3]} 29. e4 {[%clk 0:01:59.8]} 29... Rc3 {[%clk 0:01:24.1]} 30. f4 {[%clk
0:01:50.8]} 30... Qd6 {[%clk 0:01:15.3]} 31. Qe2 {[%clk 0:01:45.9]} 31... Rc1
{[%clk 0:01:11.8]} 32. Rd2 {[%clk 0:01:46.7]} 32... Ra1 {[%clk 0:01:06.5]} 33.
e5 {[%clk 0:01:45.1]} 33... Qd5+ {[%clk 0:01:01.7]} 34. Be4 {[%clk 0:01:45.8]}
34... Qe6 {[%clk 0:00:58.6]} 35. Rxd4 {[%clk 0:01:35.4]} 35... Rcc1 {[%clk
0:00:46.5]} 36. Kh2 {[%clk 0:01:16.1]} 36... Qb6 {[%clk 0:00:41.9]} 37. Rd7
{[%clk 0:00:51.3]} 37... Rh1+ {[%clk 0:00:20.9]} 38. Bxh1 {[%clk 0:00:42.7]}
38... Qg1+ {[%clk 0:00:21.7]} 39. Kh3 {[%clk 0:00:43.8]} 39... Qxh1+ {[%clk
0:00:22.7]} 40. Qh2 {[%clk 0:00:44.2]} 40... Qf3 {[%clk 0:00:22.2]} 41. e6
{[%clk 0:00:20.8]} 41... Qg4+ {[%clk 0:00:20.7]} 42. Kg2 {[%clk 0:00:21.1]}
42... Rxa2+ {[%clk 0:00:21.6]} 43. Kh1 {[%clk 0:00:21.1]} 43... Qf3+ {[%clk
0:00:20]} 44. Kg1 {[%clk 0:00:21.3]} 44... Ra1+ {[%clk 0:00:19.8]} 45. Rd1
{[%clk 0:00:20.9]} 45... Rxd1# {[%clk 0:00:20.1]} 0-1